[Event "32nd NATO Chess Championship"]
[Site "Tartu, Estonia"]
[Date "2022.06.29"]
[Round "4.13"]
[White "Balmaceda, Enrico"]
[Black "Sauer, Marko"]
[Result "1/2-1/2"]
[TimeControl "90 min + 30 sec increment from move one"]
[WhiteFideId "2089785"]
[BlackFideId "1270766"]
[WhiteElo "1958"]
[BlackElo "2065"]

1. d4 {[%clk 01:30:57]} {[%emt 00:00:03]} d5 {[%clk 01:30:45]} {[%emt
00:00:17]} 2. Bg5 {[%clk 01:31:22]} {[%emt 00:00:03]} c6 {[%clk 01:30:45]}
{[%emt 00:00:30]} 3. c3 {[%clk 01:31:29]} {[%emt 00:00:24]} Bf5 {[%clk
01:30:31]} {[%emt 00:00:43]} 4. Nf3 {[%clk 01:31:26]} {[%emt 00:00:33]} Qb6
{[%clk 01:30:41]} {[%emt 00:00:20]} 5. Qb3 {[%clk 01:31:47]} {[%emt 00:00:09]}
Nd7 {[%clk 01:30:06]} {[%emt 00:01:04]} 6. Nbd2 {[%clk 01:31:45]} {[%emt
00:00:32]} h6 {[%clk 01:28:12]} {[%emt 00:02:25]} 7. Bf4 {[%clk 01:29:11]}
{[%emt 00:03:04]} Ngf6 {[%clk 01:26:48]} {[%emt 00:01:54]} 8. e3 {[%clk
01:20:14]} {[%emt 00:09:27]} e6 {[%clk 01:19:17]} {[%emt 00:08:00]} 9. Be2
{[%clk 01:17:36]} {[%emt 00:03:08]} Be7 {[%clk 01:16:35]} {[%emt 00:03:13]} 10.
O-O {[%clk 01:14:52]} {[%emt 00:03:14]} O-O {[%clk 01:14:16]} {[%emt 00:02:49]}
11. h3 {[%clk 01:05:57]} {[%emt 00:09:25]} Rfc8 {[%clk 01:07:46]} {[%emt
00:06:59]} 12. c4 {[%clk 00:48:24]} {[%emt 00:18:04]} c5 {[%clk 01:00:58]}
{[%emt 00:07:18]} 13. Rfc1 {[%clk 00:48:14]} {[%emt 00:00:40]} dxc4 {[%clk
00:53:07]} {[%emt 00:08:21]} 14. Bxc4 {[%clk 00:42:30]} {[%emt 00:06:13]} a6
{[%clk 00:42:17]} {[%emt 00:11:20]} 15. Bf1 {[%clk 00:24:06]} {[%emt 00:18:54]}
Ne4 {[%clk 00:33:57]} {[%emt 00:08:51]} 16. g4 {[%clk 00:15:55]} {[%emt
00:08:42]} Bg6 {[%clk 00:21:43]} {[%emt 00:12:43]} 17. Bg2 {[%clk 00:14:09]}
{[%emt 00:02:16]} cxd4 {[%clk 00:16:30]} {[%emt 00:05:42]} 18. Qxb6 {[%clk
00:10:00]} {[%emt 00:04:40]} Nxb6 {[%clk 00:16:02]} {[%emt 00:00:58]} 19. Nxe4
{[%clk 00:06:53]} {[%emt 00:03:37]} Bxe4 {[%clk 00:16:25]} {[%emt 00:00:07]} 20.
Nxd4 {[%clk 00:07:09]} {[%emt 00:00:14]} Bxg2 {[%clk 00:15:35]} {[%emt
00:01:19]} 21. Kxg2 {[%clk 00:07:38]} {[%emt 00:00:02]} Nd5 {[%clk 00:15:20]}
{[%emt 00:00:45]} 22. Bg3 {[%clk 00:07:29]} {[%emt 00:00:40]} Bf6 {[%clk
00:14:54]} {[%emt 00:00:55]} 23. a3 {[%clk 00:06:22]} {[%emt 00:01:37]} g6
{[%clk 00:14:34]} {[%emt 00:00:50]} 24. Kf1 {[%clk 00:05:54]} {[%emt 00:00:59]}
b5 {[%clk 00:13:41]} {[%emt 00:01:22]} 25. Ke2 {[%clk 00:05:28]} {[%emt
00:00:56]} Nb6 {[%clk 00:12:50]} {[%emt 00:01:21]} 26. b3 {[%clk 00:05:21]}
{[%emt 00:00:37]} Nd7 {[%clk 00:10:25]} {[%emt 00:02:55]} 27. Bd6 {[%clk
00:05:00]} {[%emt 00:00:51]} Nb6 {[%clk 00:08:43]} {[%emt 00:02:12]} 28. Bc5
{[%clk 00:04:18]} {[%emt 00:01:12]} Nd5 {[%clk 00:07:58]} {[%emt 00:01:15]} 29.
a4 {[%clk 00:03:34]} {[%emt 00:01:15]} b4 {[%clk 00:07:23]} {[%emt 00:01:05]}
30. Rc4 {[%clk 00:02:16]} {[%emt 00:01:46]} a5 {[%clk 00:07:15]} {[%emt
00:00:39]} 31. Rac1 {[%clk 00:02:10]} {[%emt 00:00:36]} Nc3+ {[%clk 00:07:19]}
{[%emt 00:00:25]} 32. Ke1 {[%clk 00:02:16]} {[%emt 00:00:25]} Ra6 {[%clk
00:05:16]} {[%emt 00:02:34]} 33. f3 {[%clk 00:01:32]} {[%emt 00:01:13]} e5
{[%clk 00:03:50]} {[%emt 00:01:57]} 34. Ne2 {[%clk 00:01:40]} {[%emt 00:00:21]}
e4 {[%clk 00:02:18]} {[%emt 00:02:02]} 35. fxe4 {[%clk 00:01:21]} {[%emt
00:00:49]} Rac6 {[%clk 00:02:31]} {[%emt 00:00:17]} 36. Bd4 {[%clk 00:01:19]}
{[%emt 00:00:32]} Bh4+ {[%clk 00:02:33]} {[%emt 00:00:27]} 37. Kf1 {[%clk
00:00:58]} {[%emt 00:00:52]} Rxc4 {[%clk 00:02:56]} {[%emt 00:00:07]} 38. bxc4
{[%clk 00:01:25]} {[%emt 00:00:04]} Nxe4 {[%clk 00:03:07]} {[%emt 00:00:18]} 39.
c5 {[%clk 00:01:47]} {[%emt 00:00:08]} Nd2+ {[%clk 00:02:29]} {[%emt 00:01:08]}
40. Kg2 {[%clk 00:02:10]} {[%emt 00:00:07]} Bg5 {[%clk 00:02:34]} {[%emt
00:00:25]} 41. c6 {[%clk 00:01:33]} {[%emt 00:01:06]} Nb3 {[%clk 00:02:41]}
{[%emt 00:00:24]} 42. Rc2 {[%clk 00:01:36]} {[%emt 00:00:28]} Nxd4 {[%clk
00:02:44]} {[%emt 00:00:26]} 43. exd4 {[%clk 00:01:42]} {[%emt 00:00:25]} Bf6
{[%clk 00:03:10]} {[%emt 00:00:04]} 44. d5 {[%clk 00:01:47]} {[%emt 00:00:25]}
Be5 {[%clk 00:03:38]} {[%emt 00:00:01]} 45. Nc1 {[%clk 00:01:50]} {[%emt
00:00:27]} Kf8 {[%clk 00:03:51]} {[%emt 00:00:16]} 46. Kf3 {[%clk 00:01:51]}
{[%emt 00:00:30]} Ke7 {[%clk 00:04:15]} {[%emt 00:00:06]} 47. Nb3 {[%clk
00:02:11]} {[%emt 00:00:10]} Kd6 {[%clk 00:03:54]} {[%emt 00:00:51]} 48. Ke4
{[%clk 00:02:23]} {[%emt 00:00:18]} Bc3 {[%clk 00:04:08]} {[%emt 00:00:16]} 49.
Nxa5 {[%clk 00:02:01]} {[%emt 00:00:52]} Re8+ {[%clk 00:04:29]} {[%emt
00:00:09]} 50. Kd3 {[%clk 00:01:58]} {[%emt 00:00:33]} Kxd5 {[%clk 00:04:39]}
{[%emt 00:00:20]} 51. Rf2 {[%clk 00:00:50]} {[%emt 00:01:38]} f6 {[%clk
00:04:42]} {[%emt 00:00:27]} 52. Nb3 {[%clk 00:01:06]} {[%emt 00:00:15]} Kxc6
{[%clk 00:05:05]} {[%emt 00:00:06]} 53. h4 {[%clk 00:01:21]} {[%emt 00:00:15]}
Kd5 {[%clk 00:04:46]} {[%emt 00:00:49]} 54. h5 {[%clk 00:00:52]} {[%emt
00:00:59]} gxh5 {[%clk 00:04:46]} {[%emt 00:00:30]} 55. gxh5 {[%clk 00:00:54]}
{[%emt 00:00:28]} Rg8 {[%clk 00:05:02]} {[%emt 00:00:13]} 56. Rf5+ {[%clk
00:01:03]} {[%emt 00:00:22]} Be5 {[%clk 00:04:51]} {[%emt 00:00:41]} 57. Rf3
{[%clk 00:01:19]} {[%emt 00:00:14]} Rg2 {[%clk 00:05:07]} {[%emt 00:00:14]} 58.
Nd2 {[%clk 00:01:15]} {[%emt 00:00:35]} Rh2 {[%clk 00:04:58]} {[%emt 00:00:38]}
59. a5 {[%clk 00:01:29]} {[%emt 00:00:16]} Kc5 {[%clk 00:03:33]} {[%emt
00:01:55]} 60. Ne4+ {[%clk 00:01:05]} {[%emt 00:00:55]} Kb5 {[%clk 00:03:55]}
{[%emt 00:00:08]} 61. Nxf6 {[%clk 00:01:19]} {[%emt 00:00:16]} Bxf6 {[%clk
00:01:51]} {[%emt 00:02:34]} 62. Rxf6 {[%clk 00:01:48]} {[%emt 00:00:01]} Rxh5
{[%clk 00:02:05]} {[%emt 00:00:16]} 63. a6 {[%clk 00:02:14]} {[%emt 00:00:05]}
Rh3+ {[%emt 00:00:15]} 64. Kc2 {[%clk 00:01:59]} {[%emt 00:00:44]} Ra3 {[%clk
00:01:50]} {[%emt 00:00:59]} 65. Rxh6 {[%clk 00:02:20]} {[%emt 00:00:09]} Rxa6
{[%clk 00:02:10]} {[%emt 00:00:11]} 66. Rxa6 {[%clk 00:02:31]} {[%emt
00:00:20]} Kxa6 {[%clk 00:02:39]} 67. Kb2 {[%clk 00:02:43]} {[%emt 00:00:18]}
Kb5 {[%clk 00:02:53]} {[%emt 00:00:16]} 68. Kb3 {[%clk 00:03:01]} {[%emt
00:00:11]} Kc5 {[%clk 00:03:16]} {[%emt 00:00:08]} 69. Kb2 {[%clk 00:03:21]}
{[%emt 00:00:10]} Kc4 {[%clk 00:03:20]} {[%emt 00:00:26]} 70. Kc2 {[%clk
00:03:41]} {[%emt 00:00:10]} b3+ {[%clk 00:03:44]} {[%emt 00:00:05]} 71. Kb2
{[%clk 00:03:45]} {[%emt 00:00:27]} Kb4 {[%clk 00:04:06]} {[%emt 00:00:09]} 72.
Kb1 {[%clk 00:03:56]} {[%emt 00:00:18]} Kb5 {[%clk 00:04:00]} {[%emt 00:00:36]}
73. Kb2 {[%clk 00:03:58]} {[%emt 00:00:28]} Kc4 {[%clk 00:04:23]} {[%emt
00:00:08]} 74. Kb1 {[%clk 00:04:22]} {[%emt 00:00:06]} Kc3 {[%clk 00:04:08]}
{[%emt 00:00:45]} 75. Kc1 {[%clk 00:04:44]} {[%emt 00:00:07]} Kb4 {[%clk
00:04:05]} {[%emt 00:00:33]} 76. Kb2 {[%clk 00:05:01]} {[%emt 00:00:13]} Kc4
{[%clk 00:04:16]} {[%emt 00:00:20]} 77. Kb1 {[%clk 00:05:15]} {[%emt 00:00:15]}
1/2-1/2

[Event "32nd NATO Chess Championship"]
[Site "Tartu, Estonia"]
[Date "2022.06.29"]
[Round "4.14"]
[White "Tustanowski, Mateusz"]
[Black "Randall, Gordon"]
[Result "1-0"]
[TimeControl "90 min + 30 sec increment from move one"]
[WhiteFideId "1169866"]
[BlackFideId "2056518"]
[WhiteElo "2036"]
[BlackElo "1954"]

1. d4 {[%clk 01:30:40]} {[%emt 00:00:18]} Nf6 {[%clk 01:30:25]} {[%emt
00:00:36]} 2. Bf4 {[%clk 01:30:50]} {[%emt 00:00:19]} c5 {[%clk 01:30:00]}
{[%emt 00:00:56]} 3. e3 {[%clk 01:30:36]} {[%emt 00:00:43]} g6 {[%clk
01:27:07]} {[%emt 00:03:24]} 4. Nf3 {[%clk 01:27:55]} {[%emt 00:03:10]} Bg7
{[%clk 01:25:20]} {[%emt 00:02:17]} 5. Nbd2 {[%clk 01:26:58]} {[%emt 00:01:27]}
O-O {[%clk 01:20:50]} {[%emt 00:05:00]} 6. Bd3 {[%clk 01:24:01]} {[%emt
00:03:27]} Nc6 {[%clk 01:15:03]} {[%emt 00:06:18]} 7. c3 {[%clk 01:16:45]}
{[%emt 00:07:45]} d6 {[%clk 01:08:26]} {[%emt 00:07:07]} 8. Bg3 {[%clk
01:06:10]} {[%emt 00:11:04]} Bd7 {[%clk 01:02:10]} {[%emt 00:06:44]} 9. O-O
{[%clk 01:04:37]} {[%emt 00:02:05]} a6 {[%clk 00:55:32]} {[%emt 00:07:08]} 10.
a4 {[%clk 01:01:32]} {[%emt 00:03:35]} Rc8 {[%clk 00:49:33]} {[%emt 00:06:30]}
11. Qe2 {[%clk 00:57:07]} {[%emt 00:04:55]} Nh5 {[%clk 00:40:01]} {[%emt
00:10:01]} 12. d5 {[%clk 00:50:09]} {[%emt 00:07:28]} Nxg3 {[%clk 00:34:31]}
{[%emt 00:06:01]} 13. hxg3 {[%clk 00:49:36]} {[%emt 00:01:02]} Nb8 {[%clk
00:33:43]} {[%emt 00:01:19]} 14. Ne1 {[%clk 00:43:29]} {[%emt 00:06:36]} e6
{[%clk 00:25:59]} {[%emt 00:08:15]} 15. e4 {[%clk 00:37:06]} {[%emt 00:06:51]}
exd5 {[%clk 00:22:32]} {[%emt 00:03:58]} 16. exd5 {[%clk 00:37:16]} {[%emt
00:00:20]} Qg5 {[%clk 00:21:10]} {[%emt 00:01:52]} 17. Nc4 {[%clk 00:26:12]}
{[%emt 00:11:34]} Rce8 {[%clk 00:18:30]} {[%emt 00:03:09]} 18. Ne3 {[%clk
00:25:05]} {[%emt 00:01:37]} Bc8 {[%clk 00:16:51]} {[%emt 00:02:10]} 19. Nf3
{[%clk 00:12:04]} {[%emt 00:13:31]} Qh6 {[%clk 00:12:54]} {[%emt 00:04:28]} 20.
Rfe1 {[%clk 00:10:52]} {[%emt 00:01:42]} f5 {[%clk 00:12:07]} {[%emt 00:01:16]}
21. Nh4 {[%clk 00:03:20]} {[%emt 00:08:02]} Bd7 {[%clk 00:07:17]} {[%emt
00:05:22]} 22. f4 {[%clk 00:02:45]} {[%emt 00:01:04]} b5 {[%clk 00:04:46]}
{[%emt 00:03:01]} 23. axb5 {[%clk 00:03:00]} {[%emt 00:00:15]} axb5 {[%clk
00:05:04]} {[%emt 00:00:13]} 24. Bxb5 {[%clk 00:02:29]} {[%emt 00:01:00]} Rxe3
{[%clk 00:05:07]} {[%emt 00:00:28]} 25. Qxe3 {[%clk 00:02:54]} {[%emt
00:00:05]} Bxb5 {[%clk 00:05:28]} {[%emt 00:00:09]} 26. Qe6+ {[%clk 00:02:50]}
{[%emt 00:00:34]} Rf7 {[%clk 00:02:48]} {[%emt 00:03:09]} 27. Ra8 {[%clk
00:02:54]} {[%emt 00:00:26]} 1-0

[Event "32nd NATO Chess Championship"]
[Site "Tartu, Estonia"]
[Date "2022.06.29"]
[Round "4.15"]
[White "Jacob, Tobias"]
[Black "Dekker, Ard"]
[Result "1/2-1/2"]
[TimeControl "90 min + 30 sec increment from move one"]
[WhiteFideId "12903221"]
[BlackFideId "1014528"]
[WhiteElo "2013"]
[BlackElo "1932"]

1. c4 {[%clk 01:30:55]} {[%emt 00:00:04]} c6 {[%clk 01:30:46]} {[%emt
00:00:15]} 2. g3 {[%clk 01:31:07]} {[%emt 00:00:20]} d5 {[%clk 01:31:03]}
{[%emt 00:00:11]} 3. Bg2 {[%clk 01:31:24]} {[%emt 00:00:12]} Nf6 {[%clk
01:31:16]} {[%emt 00:00:19]} 4. Nf3 {[%clk 01:31:35]} {[%emt 00:00:18]} Bf5
{[%clk 01:31:10]} {[%emt 00:00:36]} 5. Qb3 {[%clk 01:31:24]} {[%emt 00:00:41]}
Qb6 {[%clk 01:30:52]} {[%emt 00:00:48]} 6. d3 {[%clk 01:30:50]} {[%emt
00:01:04]} Qxb3 {[%clk 01:29:25]} {[%emt 00:01:58]} 7. axb3 {[%clk 01:31:12]}
{[%emt 00:00:07]} h6 {[%clk 01:28:44]} {[%emt 00:01:11]} 8. Be3 {[%clk
01:30:32]} {[%emt 00:01:10]} Nbd7 {[%clk 01:27:15]} {[%emt 00:01:55]} 9. Nc3
{[%clk 01:24:05]} {[%emt 00:07:01]} e5 {[%clk 01:21:03]} {[%emt 00:06:42]} 10.
cxd5 {[%clk 01:16:18]} {[%emt 00:08:17]} cxd5 {[%clk 01:21:29]} {[%emt
00:00:05]} 11. Nb5 {[%clk 01:16:13]} {[%emt 00:00:35]} Bb4+ {[%clk 01:13:56]}
{[%emt 00:08:03]} 12. Bd2 {[%clk 01:16:31]} {[%emt 00:00:11]} Bxd2+ {[%clk
01:13:06]} {[%emt 00:01:20]} 13. Kxd2 {[%clk 01:16:03]} {[%emt 00:00:58]} O-O
{[%clk 01:12:58]} {[%emt 00:00:37]} 14. Nxa7 {[%clk 01:09:58]} {[%emt
00:06:35]} Be6 {[%clk 01:04:17]} {[%emt 00:09:12]} 15. e3 {[%clk 00:55:32]}
{[%emt 00:14:56]} Nc5 {[%clk 01:01:45]} {[%emt 00:03:01]} 16. Ra3 {[%clk
00:42:33]} {[%emt 00:13:30]} Nfd7 {[%clk 00:56:18]} {[%emt 00:05:56]} 17. Rc1
{[%clk 00:34:58]} {[%emt 00:08:06]} Rxa7 {[%clk 00:50:32]} {[%emt 00:06:16]} 18.
Rxa7 {[%clk 00:35:13]} {[%emt 00:00:14]} Nxb3+ {[%clk 00:50:46]} {[%emt
00:00:16]} 19. Kd1 {[%clk 00:35:29]} {[%emt 00:00:15]} Nxc1 {[%clk 00:51:01]}
{[%emt 00:00:14]} 20. Kxc1 {[%clk 00:35:46]} {[%emt 00:00:13]} Rc8+ {[%clk
00:49:28]} {[%emt 00:02:04]} 1/2-1/2

[Event "32nd NATO Chess Championship"]
[Site "Tartu, Estonia"]
[Date "2022.06.29"]
[Round "4.16"]
[White "Tammisto, Janek"]
[Black "Hernandez, Albert"]
[Result "1/2-1/2"]
[TimeControl "90 min + 30 sec increment from move one"]
[WhiteFideId "4510950"]
[BlackFideId "2075407"]
[WhiteElo "1881"]
[BlackElo "2012"]

1. e4 {[%clk 01:30:56]} {[%emt 00:00:05]} e6 {[%clk 01:30:53]} {[%emt
00:00:07]} 2. d4 {[%clk 01:31:21]} {[%emt 00:00:04]} d5 {[%clk 01:31:19]}
{[%emt 00:00:04]} 3. exd5 {[%clk 01:31:46]} {[%emt 00:00:06]} exd5 {[%clk
01:31:46]} {[%emt 00:00:01]} 4. Nf3 {[%clk 01:31:31]} {[%emt 00:00:45]} Bd6
{[%clk 01:32:06]} {[%emt 00:00:11]} 5. Bd3 {[%clk 01:31:53]} {[%emt 00:00:09]}
Ne7 {[%clk 01:32:24]} {[%emt 00:00:12]} 6. Bg5 {[%clk 01:31:58]} {[%emt
00:00:24]} f6 {[%clk 01:32:44]} {[%emt 00:00:11]} 7. Bh4 {[%clk 01:32:14]}
{[%emt 00:00:14]} O-O {[%clk 01:32:52]} {[%emt 00:00:22]} 8. O-O {[%clk
01:31:27]} {[%emt 00:01:17]} Bf5 {[%clk 01:33:08]} {[%emt 00:00:13]} 9. Bg3
{[%clk 01:28:51]} {[%emt 00:03:06]} Bxg3 {[%clk 01:32:13]} {[%emt 00:01:25]} 10.
hxg3 {[%clk 01:29:12]} {[%emt 00:00:09]} Nd7 {[%clk 01:29:39]} {[%emt
00:03:04]} 11. Re1 {[%clk 01:28:57]} {[%emt 00:00:46]} Bxd3 {[%clk 01:29:52]}
{[%emt 00:00:18]} 12. Qxd3 {[%clk 01:29:20]} {[%emt 00:00:07]} Re8 {[%clk
01:30:13]} {[%emt 00:00:09]} 13. Nbd2 {[%clk 01:26:46]} {[%emt 00:03:04]} Nf8
{[%clk 01:29:13]} {[%emt 00:01:30]} 14. Re3 {[%clk 01:23:44]} {[%emt 00:03:32]}
Qd7 {[%clk 01:28:15]} {[%emt 00:01:28]} 15. Rae1 {[%clk 01:23:34]} {[%emt
00:00:39]} Neg6 {[%clk 01:27:21]} {[%emt 00:01:25]} 16. Nh4 {[%clk 01:18:42]}
{[%emt 00:05:20]} 1/2-1/2

[Event "32nd NATO Chess Championship"]
[Site "Tartu, Estonia"]
[Date "2022.06.29"]
[Round "4.17"]
[White "Nilsson, Erik"]
[Black "Choina, Michal"]
[Result "1/2-1/2"]
[TimeControl "90 min + 30 sec increment from move one"]
[WhiteFideId "1409000"]
[BlackFideId "1166565"]
[WhiteElo "2002"]
[BlackElo "1927"]

1. d4 {[%clk 01:30:50]} {[%emt 00:00:10]} Nf6 {[%clk 01:30:48]} {[%emt
00:00:12]} 2. c4 {[%clk 01:31:04]} {[%emt 00:00:18]} g6 {[%clk 01:29:46]}
{[%emt 00:01:30]} 3. Nc3 {[%clk 01:31:28]} {[%emt 00:00:06]} d6 {[%clk
01:30:08]} {[%emt 00:00:07]} 4. e4 {[%clk 01:31:19]} {[%emt 00:00:39]} Bg7
{[%clk 01:30:07]} {[%emt 00:00:32]} 5. Nge2 {[%clk 01:30:36]} {[%emt 00:01:13]}
O-O {[%clk 01:29:40]} {[%emt 00:00:55]} 6. Ng3 {[%clk 01:30:56]} {[%emt
00:00:10]} e5 {[%clk 01:28:23]} {[%emt 00:01:47]} 7. d5 {[%clk 01:31:19]}
{[%emt 00:00:08]} Ne8 {[%clk 01:23:59]} {[%emt 00:04:53]} 8. Be2 {[%clk
01:23:05]} {[%emt 00:08:44]} f5 {[%clk 01:20:22]} {[%emt 00:04:08]} 9. exf5
{[%clk 01:22:46]} {[%emt 00:00:49]} Bxf5 {[%clk 01:18:23]} {[%emt 00:02:28]} 10.
O-O {[%clk 01:20:37]} {[%emt 00:02:39]} Nd7 {[%clk 01:16:50]} {[%emt 00:02:04]}
11. Be3 {[%clk 01:19:02]} {[%emt 00:02:05]} a6 {[%clk 01:10:09]} {[%emt
00:07:11]} 12. Qd2 {[%clk 01:18:59]} {[%emt 00:00:33]} Ndf6 {[%clk 01:05:31]}
{[%emt 00:05:08]} 13. f3 {[%clk 01:16:30]} {[%emt 00:02:59]} Qd7 {[%clk
00:59:12]} {[%emt 00:06:50]} 14. Bd3 {[%clk 01:13:41]} {[%emt 00:03:19]} Bxd3
{[%clk 00:58:38]} {[%emt 00:01:04]} 15. Qxd3 {[%clk 01:14:04]} {[%emt
00:00:07]} Bh8 {[%clk 00:54:20]} {[%emt 00:04:48]} 16. Bh6 {[%clk 01:07:09]}
{[%emt 00:07:25]} Bg7 {[%clk 00:53:28]} {[%emt 00:01:22]} 17. Be3 {[%clk
01:05:58]} {[%emt 00:01:41]} Bh8 {[%clk 00:53:09]} {[%emt 00:00:49]} 18. Nce4
{[%clk 01:05:05]} {[%emt 00:01:22]} Nxe4 {[%clk 00:51:18]} {[%emt 00:02:22]} 19.
Nxe4 {[%clk 01:04:19]} {[%emt 00:01:16]} Bf6 {[%clk 00:49:13]} {[%emt
00:02:35]} 20. Bh6 {[%clk 01:03:18]} {[%emt 00:01:30]} Bg7 {[%clk 00:47:24]}
{[%emt 00:02:18]} 21. Be3 {[%clk 01:01:55]} {[%emt 00:01:54]} Bf6 {[%clk
00:45:46]} {[%emt 00:02:09]} 22. Bh6 {[%clk 01:02:14]} {[%emt 00:00:10]} Bg7
{[%clk 00:46:00]} {[%emt 00:00:16]} 1/2-1/2

[Event "32nd NATO Chess Championship"]
[Site "Tartu, Estonia"]
[Date "2022.06.29"]
[Round "4.18"]
[White "Peraino, Andrew"]
[Black "Cirkvencic, Franci"]
[Result "1-0"]
[TimeControl "90 min + 30 sec increment from move one"]
[WhiteFideId "30936187"]
[BlackFideId "14600528"]
[WhiteElo "1940"]
[BlackElo "2000"]

1. e4 {[%clk 01:30:58]} {[%emt 00:00:03]} c5 {[%clk 01:30:46]} {[%emt
00:00:14]} 2. Nf3 {[%clk 01:31:22]} {[%emt 00:00:05]} d6 {[%clk 01:30:59]}
{[%emt 00:00:16]} 3. Bb5+ {[%clk 01:31:34]} {[%emt 00:00:18]} Nd7 {[%clk
01:31:17]} {[%emt 00:00:12]} 4. a4 {[%clk 01:31:38]} {[%emt 00:00:27]} a6
{[%clk 01:30:09]} {[%emt 00:01:37]} 5. Bc4 {[%clk 01:31:58]} {[%emt 00:00:10]}
Ngf6 {[%clk 01:29:59]} {[%emt 00:00:40]} 6. Nc3 {[%clk 01:30:51]} {[%emt
00:01:38]} e6 {[%clk 01:23:40]} {[%emt 00:06:49]} 7. Qe2 {[%clk 01:28:11]}
{[%emt 00:03:09]} Ne5 {[%clk 01:21:26]} {[%emt 00:02:43]} 8. Nxe5 {[%clk
01:27:27]} {[%emt 00:01:14]} dxe5 {[%clk 01:21:48]} {[%emt 00:00:09]} 9. d3
{[%clk 01:26:47]} {[%emt 00:01:10]} Bd6 {[%clk 01:17:21]} {[%emt 00:04:57]} 10.
Bd2 {[%clk 01:21:33]} h6 {[%clk 01:15:22]} {[%emt 00:08:13]} 11. g3 {[%clk
01:10:23]} {[%emt 00:11:40]} Qc7 {[%clk 01:14:15]} {[%emt 00:01:37]} 12. a5
{[%clk 01:10:29]} Bd7 {[%clk 01:14:15]} 13. h4 {[%clk 01:10:29]} Bc8 {[%clk
01:14:18]} 14. g4 {[%emt 00:09:12]} Bd7 {[%clk 01:07:28]} 15. Rg1 {[%clk
01:04:32]} {[%emt 00:05:57]} O-O-O {[%clk 01:06:46]} 16. g5 {[%clk 01:04:32]}
hxg5 {[%clk 01:06:46]} 17. hxg5 {[%clk 01:05:12]} {[%emt 00:01:50]} Bc6 {[%clk
00:59:10]} 18. g6 {[%clk 01:05:18]} {[%emt 00:08:41]} Nh5 {[%clk 00:48:04]} 19.
gxf7 {[%clk 01:01:45]} {[%emt 00:15:40]} Qxf7 {[%clk 00:48:20]} {[%emt
00:00:14]} 20. Qg4 {[%clk 01:01:46]} {[%emt 00:00:28]} Bd7 {[%clk 00:48:30]}
{[%emt 00:00:20]} 21. Na4 {[%clk 01:01:52]} {[%emt 00:00:25]} Nf6 {[%clk
00:43:00]} {[%emt 00:05:59]} 22. Nb6+ {[%clk 01:01:42]} {[%emt 00:00:41]} Kc7
{[%clk 00:43:10]} {[%emt 00:00:19]} 23. Qg2 {[%clk 00:59:22]} {[%emt 00:02:50]}
Rdg8 {[%clk 00:39:08]} {[%emt 00:04:32]} 24. O-O-O {[%clk 00:54:23]} {[%emt
00:05:29]} g6 {[%clk 00:23:11]} {[%emt 00:16:26]} 25. Qf3 {[%clk 00:48:28]}
{[%emt 00:06:25]} Rh7 {[%clk 00:21:48]} {[%emt 00:01:53]} 26. Rg5 {[%clk
00:42:01]} {[%emt 00:06:57]} Be8 {[%clk 00:18:52]} {[%emt 00:03:27]} 27. Bc3
{[%clk 00:39:36]} {[%emt 00:02:55]} Rh5 {[%clk 00:16:12]} {[%emt 00:03:09]} 28.
Bxe5 {[%clk 00:32:29]} {[%emt 00:07:38]} Bxe5 {[%clk 00:16:23]} {[%emt
00:00:19]} 29. Rxe5 {[%clk 00:32:05]} {[%emt 00:00:54]} Rxe5 {[%clk 00:15:40]}
{[%emt 00:01:13]} 30. Qg3 {[%clk 00:31:44]} {[%emt 00:00:51]} Ng4 {[%clk
00:11:25]} {[%emt 00:04:44]} 31. f4 {[%clk 00:30:14]} {[%emt 00:02:01]} Rf5
{[%clk 00:04:54]} {[%emt 00:07:01]} 32. exf5 {[%clk 00:25:20]} {[%emt
00:05:24]} gxf5 {[%clk 00:05:16]} {[%emt 00:00:08]} 33. Qg1 {[%clk 00:21:42]}
{[%emt 00:04:08]} Qe7 {[%clk 00:03:02]} {[%emt 00:02:44]} 34. d4 {[%clk
00:20:59]} {[%emt 00:01:13]} Qd6 {[%clk 00:02:06]} {[%emt 00:01:24]} 35. Qg3
{[%clk 00:16:43]} {[%emt 00:04:48]} Nf6 {[%clk 00:01:26]} {[%emt 00:01:10]} 36.
Qe3 {[%clk 00:16:32]} {[%emt 00:00:40]} Ne4 {[%clk 00:01:36]} {[%emt 00:00:21]}
37. dxc5 {[%clk 00:15:31]} {[%emt 00:01:31]} Qe7 {[%clk 00:01:15]} {[%emt
00:00:51]} 38. Qd4 {[%clk 00:15:27]} {[%emt 00:00:34]} Nxc5 {[%clk 00:01:21]}
{[%emt 00:00:24]} 39. Qe5+ {[%clk 00:15:37]} {[%emt 00:00:20]} Kc6 {[%clk
00:01:37]} {[%emt 00:00:14]} 40. b4 {[%clk 00:14:20]} {[%emt 00:01:47]} Bh5
{[%clk 00:01:54]} {[%emt 00:00:13]} 41. b5+ {[%clk 00:14:01]} {[%emt 00:00:48]}
axb5 {[%clk 00:02:19]} {[%emt 00:00:05]} 42. Bd5+ {[%clk 00:14:26]} {[%emt
00:00:06]} exd5 {[%clk 00:01:54]} {[%emt 00:00:56]} 43. Qxe7 {[%clk 00:14:18]}
{[%emt 00:00:38]} Bxd1 {[%clk 00:02:11]} {[%emt 00:00:12]} 44. Qf6+ {[%clk
00:14:13]} {[%emt 00:00:34]} Kc7 {[%clk 00:01:37]} {[%emt 00:01:05]} 45. Qf7+
{[%clk 00:14:18]} {[%emt 00:00:25]} Kb8 {[%clk 00:02:02]} {[%emt 00:00:05]} 46.
Qxg8+ {[%clk 00:14:34]} {[%emt 00:00:14]} Ka7 {[%clk 00:02:29]} {[%emt
00:00:03]} 47. Qa8# {[%clk 00:15:01]} {[%emt 00:00:02]} 1-0